Workbook

Sheet Sheet1
A1: 附件：
A2: 黔南州惠水县2025年特岗教师招聘笔试面试总成绩公示名单
A3: 准考证号 | B3: 笔试成绩 | C3: 笔试成绩折算（占50%） | D3: 面试成绩 | E3: 面试成绩折算（占50%） | F3: 考试总成绩 | G3: 备注
A4: 20250804010202 | B4: 73 | C4: =B4/2 -> 36.50 | D4: 87.38 | E4: =D4/2 -> 43.69 | F4: =C4+E4 -> 80.19
A5: 20250804010129 | B5: 73 | C5: =B5/2 -> 36.50 | D5: 89.46 | E5: =D5/2 -> 44.73 | F5: =C5+E5 -> 81.23
A6: 20250804010104 | B6: 71 | C6: =B6/2 -> 35.50 | D6: 89.00 | E6: =D6/2 -> 44.50 | F6: =C6+E6 -> 80.00
A7: 20250804010204 | B7: 70 | C7: =B7/2 -> 35.00 | D7: 83.86 | E7: 41.93 | F7: =C7+E7 -> 76.93
A8: 20250804010107 | B8: 70 | C8: 35.00 | D8: 88.63 | E8: 44.32 | F8: 79.32
A9: 20250804010109 | B9: 69.5 | C9: 34.75 | D9: 84.76 | E9: 42.38 | F9: 77.13
A10: 20250804010229 | B10: 81 | C10: 40.50 | D10: 93.73 | E10: 46.87 | F10: 87.37
A11: 20250804010217 | B11: 78 | C11: 39.00 | D11: 91.31 | E11: 45.66 | F11: 84.66
A12: 20250804010308 | B12: 78 | C12: 39.00 | D12: 93.26 | E12: 46.63 | F12: 85.63
A13: 20250804010228 | B13: 73 | C13: 36.50 | D13: 77.26 | E13: 38.63 | F13: 75.13
A14: 20250804010321 | B14: 72.5 | C14: 36.25 | D14: 89.68 | E14: 44.84 | F14: 81.09
A15: 20250804010223 | B15: 71 | C15: 35.50 | D15: 88.51 | E15: 44.26 | F15: 79.76
A16: 20250804013224 | B16: 90 | C16: 45.00 | D16: 93.08 | E16: 46.54 | F16: 91.54
A17: 20250804013101 | B17: 86 | C17: 43.00 | D17: 92.02 | E17: 46.01 | F17: 89.01
A18: 20250804012927 | B18: 82 | C18: 41.00 | D18: 92.57 | E18: 46.29 | F18: 87.29
A19: 20250804012925 | B19: 80 | C19: 40.00 | D19: 88.59 | E19: 44.30 | F19: 84.30
A20: 20250804013019 | B20: 79.5 | C20: 39.75 | D20: 89.63 | E20: 44.82 | F20: 84.57
A21: 20250804012908 | B21: 78.5 | C21: 39.25 | D21: QK | F21: 39.25
A22: 20250804010421 | B22: 78.5 | C22: 39.25 | D22: 87.67 | E22: 43.84 | F22: 83.09
A23: 20250804010422 | B23: 77.5 | C23: 38.75 | D23: 84.08 | E23: 42.04 | F23: 80.79
A24: 20250804010327 | B24: 77 | C24: 38.50 | D24: 85.73 | E24: 42.87 | F24: 81.37
A25: 20250804010411 | B25: 77 | C25: 38.50 | D25: 85.60 | E25: 42.80 | F25: 81.30
A26: 20250804010325 | B26: 76.5 | C26: 38.25 | D26: 88.51 | E26: 44.26 | F26: 82.51
A27: 20250804010324 | B27: 74 | C27: 37.00 | D27: 85.16 | E27: 42.58 | F27: 79.58
A28: 20250804010330 | B28: 74 | C28: 37.00 | D28: 91.04 | E28: 45.52 | F28: 82.52
A29: 20250804010404 | B29: 74 | C29: 37.00 | D29: 89.02 | E29: 44.51 | F29: 81.51
A30: 20250804014508 | B30: 85 | C30: 42.50 | D30: 87.24 | E30: 43.62 | F30: 86.12
A31: 20250804014515 | B31: 75 | C31: 37.50 | D31: 90.05 | E31: 45.03 | F31: 82.53
A32: 20250804014513 | B32: 72 | C32: 36.00 | D32: 88.13 | E32: 44.07 | F32: 80.07
A33: 20250804014507 | B33: 66.5 | C33: 33.25 | D33: QK | F33: 33.25
A34: 20250804014516 | B34: 64.5 | C34: 32.25 | D34: QK | F34: 32.25
A35: 20250804014514 | B35: 63 | C35: 31.50 | D35: 85.01 | E35: 42.51 | F35: 74.01
A36: 20250804014518 | B36: 63 | C36: 31.50 | D36: 83.32 | E36: 41.66 | F36: 73.16
A37: 20250804013919 | B37: 85 | C37: 42.50 | D37: 89.46 | E37: 44.73 | F37: 87.23
A38: 20250804013826 | B38: 82 | C38: 41.00 | D38: 83.17 | E38: =D38/2 -> 41.59 | F38: 82.59
A39: 20250804014002 | B39: 82 | C39: =B39/2 -> 41.00 | D39: 92.35 | E39: 46.18 | F39: =C39+E39 -> 87.18
A40: 20250804013904 | B40: 78.5 | C40: 39.25 | D40: 86.79 | E40: 43.40 | F40: 82.65
A41: 20250804013924 | B41: 78 | C41: 39.00 | D41: 82.55 | E41: 41.28 | F41: 80.28
A42: 20250804013914 | B42: 76.5 | C42: 38.25 | D42: 87.27 | E42: 43.64 | F42: 81.89
A43: 20250804013310 | B43: 87 | C43: 43.50 | D43: 80.95 | E43: 40.48 | F43: 83.98
A44: 20250804013312 | B44: 83 | C44: 41.50 | D44: 76.79 | E44: 38.40 | F44: 79.90
A45: 20250804013309 | B45: 80.5 | C45: 40.25 | D45: 72.53 | E45: 36.27 | F45: 76.52
A46: 20250804013411 | B46: 75.5 | C46: 37.75 | D46: 82.16 | E46: 41.08 | F46: 78.83
A47: 20250804013420 | B47: 74 | C47: 37.00 | D47: 83.87 | E47: 41.94 | F47: 78.94
A48: 20250804013307 | B48: 73 | C48: 36.50 | D48: 82.39 | E48: 41.20 | F48: 77.70
A49: 20250804013306 | B49: 68.5 | C49: 34.25 | D49: 87.69 | E49: 43.85 | F49: 78.10
A50: 20250804013311 | B50: 68.5 | C50: 34.25 | D50: 86.88 | E50: 43.44 | F50: 77.69
A51: 20250804013404 | B51: 67 | C51: 33.50 | D51: 80.42 | E51: 40.21 | F51: 73.71
A52: 20250804013321 | B52: 65.5 | C52: 32.75 | D52: QK | F52: 32.75
A53: 20250804013330 | B53: 65.5 | C53: 32.75 | D53: 85.28 | E53: 42.64 | F53: 75.39
A54: 20250804013302 | B54: 65 | C54: 32.50 | D54: 80.19 | E54: 40.10 | F54: 72.60
A55: 20250804013318 | B55: 65 | C55: 32.50 | D55: 79.20 | E55: 39.60 | F55: 72.10
A56: 20250804013314 | B56: 64.5 | C56: 32.25 | D56: QK | F56: 32.25
A57: 20250804013416 | B57: 63.5 | C57: 31.75 | D57: QK | F57: 31.75
A58: 20250804013228 | B58: 62.5 | C58: 31.25 | D58: 85.24 | E58: 42.62 | F58: 73.87
A59: 20250804013301 | B59: 62.5 | C59: 31.25 | D59: QK | F59: 31.25
A60: 20250804013313 | B60: 62 | C60: 31.00 | D60: 78.75 | E60: 39.38 | F60: 70.38
A61: 20250804013419 | B61: 62 | C61: 31.00 | D61: 83.04 | E61: 41.52 | F61: 72.52
A62: 20250804014319 | B62: 83.5 | C62: 41.75 | D62: 84.01 | E62: 42.01 | F62: 83.76
A63: 20250804014403 | B63: 82.5 | C63: 41.25 | D63: 90.59 | E63: 45.30 | F63: 86.55
A64: 20250804014405 | B64: 81.5 | C64: 40.75 | D64: 86.50 | E64: 43.25 | F64: 84.00
A65: 20250804013719 | B65: 96 | C65: 48.00 | D65: 84.63 | E65: 42.32 | F65: 90.32
A66: 20250804013508 | B66: 94 | C66: 47.00 | D66: 85.77 | E66: 42.89 | F66: 89.89
A67: 20250804013501 | B67: 90.5 | C67: 45.25 | D67: 82.83 | E67: 41.42 | F67: 86.67
A68: 20250804013422 | B68: 90 | C68: 45.00 | D68: 85.11 | E68: 42.56 | F68: 87.56
A69: 20250804013729 | B69: 90 | C69: 45.00 | D69: 83.26 | E69: 41.63 | F69: 86.63
A70: 20250804013606 | B70: 89 | C70: 44.50 | D70: 84.59 | E70: =D70/2 -> 42.30 | F70: 86.80
A71: 20250804013623 | B71: 88 | C71: =B71/2 -> 44.00 | D71: 85.07 | E71: 42.54 | F71: =C71+E71 -> 86.54
A72: 20250804013504 | B72: 87.5 | C72: 43.75 | D72: 83.66 | E72: 41.83 | F72: 85.58
A73: 20250804013614 | B73: 87 | C73: 43.50 | D73: 82.02 | E73: 41.01 | F73: 84.51
A74: 20250804013626 | B74: 87 | C74: 43.50 | D74: 84.90 | E74: 42.45 | F74: 85.95
A75: 20250804013429 | B75: 86 | C75: 43.00 | D75: 84.96 | E75: 42.48 | F75: 85.48
A76: 20250804013427 | B76: 85.5 | C76: 42.75 | D76: 82.73 | E76: 41.37 | F76: 84.12
A77: 20250804013603 | B77: 85.5 | C77: 42.75 | D77: 85.96 | E77: 42.98 | F77: 85.73
A78: 20250804013815 | B78: 85.5 | C78: 42.75 | D78: 84.04 | E78: 42.02 | F78: 84.77
A79: 20250804011701 | B79: 90.5 | C79: 45.25 | D79: 84.06 | E79: 42.03 | F79: 87.28
A80: 20250804011627 | B80: 89.5 | C80: 44.75 | D80: 86.80 | E80: 43.40 | F80: 88.15
A81: 20250804011630 | B81: 83 | C81: 41.50 | D81: 86.22 | E81: 43.11 | F81: 84.61
A82: 20250804011624 | B82: 78.5 | C82: 39.25 | D82: 84.17 | E82: 42.09 | F82: 81.34
A83: 20250804011628 | B83: 78.5 | C83: 39.25 | D83: QK | F83: 39.25
A84: 20250804011621 | B84: 68.5 | C84: 34.25 | D84: QK | F84: 34.25
A85: 20250804010729 | B85: 88 | C85: 44.00 | D85: 93.91 | E85: 46.96 | F85: 90.96
A86: 20250804011008 | B86: 83 | C86: 41.50 | D86: 93.45 | E86: 46.73 | F86: 88.23
A87: 20250804010619 | B87: 82.5 | C87: 41.25 | D87: 89.38 | E87: 44.69 | F87: 85.94
A88: 20250804010815 | B88: 82.5 | C88: 41.25 | D88: 91.19 | E88: 45.60 | F88: 86.85
A89: 20250804011011 | B89: 82.5 | C89: 41.25 | D89: 90.58 | E89: 45.29 | F89: 86.54
A90: 20250804010909 | B90: 81 | C90: 40.50 | D90: 93.92 | E90: 46.96 | F90: 87.46
A91: 20250804010506 | B91: 80.5 | C91: 40.25 | D91: 89.36 | E91: 44.68 | F91: 84.93
A92: 20250804010721 | B92: 79.5 | C92: 39.75 | D92: 92.31 | E92: 46.16 | F92: 85.91
A93: 20250804010924 | B93: 79.5 | C93: 39.75 | D93: 92.54 | E93: 46.27 | F93: 86.02
A94: 20250804010520 | B94: 79 | C94: 39.50 | D94: 87.85 | E94: 43.93 | F94: 83.43
A95: 20250804010519 | B95: 78.5 | C95: 39.25 | D95: 85.91 | E95: 42.96 | F95: 82.21
A96: 20250804010825 | B96: 78.5 | C96: 39.25 | D96: 90.83 | E96: 45.42 | F96: 84.67
A97: 20250804010922 | B97: 78 | C97: 39.00 | D97: 90.31 | E97: 45.16 | F97: 84.16
A98: 20250804010507 | B98: 77.5 | C98: 38.75 | D98: 90.74 | E98: 45.37 | F98: 84.12
A99: 20250804010823 | B99: 77.5 | C99: 38.75 | D99: QK | F99: 38.75
A100: 20250804010530 | B100: 77 | C100: 38.50 | D100: 93.69 | E100: 46.85 | F100: 85.35
A101: 20250804010720 | B101: 77 | C101: 38.50 | D101: QK | F101: 38.50
A102: 20250804010926 | B102: 77 | C102: 38.50 | D102: QK | F102: 38.50
A103: 20250804014228 | B103: 84.5 | C103: =B103/2 -> 42.25 | D103: 89.19 | E103: =D103/2 -> 44.60 | F103: =C103+E103 -> 86.85
A104: 20250804014309 | B104: 84 | C104: 42.00 | D104: 88.30 | E104: 44.15 | F104: 86.15
A105: 20250804014303 | B105: 78.5 | C105: 39.25 | D105: 88.22 | E105: 44.11 | F105: 83.36
A106: 20250804011103 | B106: 82 | C106: 41.00 | D106: 90.24 | E106: 45.12 | F106: 86.12
A107: 20250804011223 | B107: 81 | C107: 40.50 | D107: 89.02 | E107: 44.51 | F107: 85.01
A108: 20250804011528 | B108: 80.5 | C108: 40.25 | D108: 88.20 | E108: 44.10 | F108: 84.35
A109: 20250804011201 | B109: 79.5 | C109: 39.75 | D109: 88.96 | E109: 44.48 | F109: 84.23
A110: 20250804011406 | B110: 79.5 | C110: 39.75 | D110: 90.01 | E110: 45.01 | F110: 84.76
A111: 20250804011501 | B111: 79.5 | C111: 39.75 | D111: 84.65 | E111: 42.33 | F111: 82.08
A112: 20250804011526 | B112: 79 | C112: 39.50 | D112: 86.64 | E112: 43.32 | F112: 82.82
A113: 20250804011126 | B113: 78.5 | C113: 39.25 | D113: 85.55 | E113: 42.78 | F113: 82.03
A114: 20250804011513 | B114: 78.5 | C114: 39.25 | D114: 86.97 | E114: 43.49 | F114: 82.74
A115: 20250804011117 | B115: 78 | C115: 39.00 | D115: QK | F115: 39.00
A116: 20250804011303 | B116: 77.5 | C116: 38.75 | D116: 84.58 | E116: 42.29 | F116: 81.04
A117: 20250804011521 | B117: 77.5 | C117: 38.75 | D117: 89.60 | E117: 44.80 | F117: 83.55
A118: 20250804011101 | B118: 77 | C118: 38.50 | D118: 89.69 | E118: 44.85 | F118: 83.35
A119: 20250804011517 | B119: 77 | C119: 38.50 | D119: 80.47 | E119: 40.24 | F119: 78.74
A120: 20250804011121 | B120: 76.5 | C120: 38.25 | D120: 91.16 | E120: 45.58 | F120: 83.83
A121: 20250804011524 | B121: 76.5 | C121: 38.25 | D121: 91.83 | E121: 45.92 | F121: 84.17
A122: 20250804011606 | B122: 76.5 | C122: 38.25 | D122: 85.67 | E122: 42.84 | F122: 81.09
A123: 20250804014029 | B123: 79 | C123: 39.50 | D123: 90.57 | E123: 45.29 | F123: 84.79
A124: 20250804014101 | B124: 78 | C124: 39.00 | D124: 92.00 | E124: 46.00 | F124: 85.00
A125: 20250804014202 | B125: 77 | C125: 38.50 | D125: 90.63 | E125: 45.32 | F125: 83.82
A126: 20250804014115 | B126: 74 | C126: 37.00 | D126: 89.74 | E126: 44.87 | F126: 81.87
A127: 20250804014209 | B127: 73 | C127: 36.50 | D127: 90.97 | E127: 45.49 | F127: 81.99
A128: 20250804014015 | B128: 72.5 | C128: 36.25 | D128: 87.86 | E128: 43.93 | F128: 80.18
A129: 20250804011921 | B129: 92 | C129: 46.00 | D129: 80.83 | E129: 40.42 | F129: 86.42
A130: 20250804011726 | B130: 91 | C130: 45.50 | D130: 83.58 | E130: 41.79 | F130: 87.29
A131: 20250804011917 | B131: 90.5 | C131: 45.25 | D131: 83.77 | E131: 41.89 | F131: 87.14
A132: 20250804011813 | B132: 90 | C132: 45.00 | D132: 83.98 | E132: 41.99 | F132: 86.99
A133: 20250804011814 | B133: 89.5 | C133: 44.75 | D133: 91.35 | E133: 45.68 | F133: 90.43
A134: 20250804011709 | B134: 89 | C134: 44.50 | D134: 83.08 | E134: =D134/2 -> 41.54 | F134: 86.04
A135: 20250804011911 | B135: 88 | C135: =B135/2 -> 44.00 | D135: 81.95 | E135: 40.98 | F135: =C135+E135 -> 84.98
A136: 20250804011829 | B136: 85.5 | C136: 42.75 | D136: 83.82 | E136: 41.91 | F136: 84.66
A137: 20250804011805 | B137: 83.5 | C137: 41.75 | D137: 85.65 | E137: 42.83 | F137: 84.58
A138: 20250804011810 | B138: 83.5 | C138: 41.75 | D138: 87.30 | E138: 43.65 | F138: 85.40
A139: 20250804011727 | B139: 82.5 | C139: 41.25 | D139: 79.91 | E139: 39.96 | F139: 81.21
A140: 20250804011914 | B140: 81.5 | C140: 40.75 | D140: 86.43 | E140: 43.22 | F140: 83.97
A141: 20250804011806 | B141: 80.5 | C141: 40.25 | D141: 81.46 | E141: 40.73 | F141: 80.98
A142: 20250804011714 | B142: 80 | C142: 40.00 | D142: 83.85 | E142: 41.93 | F142: 81.93
A143: 20250804011904 | B143: 80 | C143: 40.00 | D143: 82.19 | E143: 41.10 | F143: 81.10
A144: 20250804011729 | B144: 79.5 | C144: 39.75 | D144: 82.70 | E144: 41.35 | F144: 81.10
A145: 20250804011812 | B145: 79.5 | C145: 39.75 | D145: QK | F145: 39.75
A146: 20250804011830 | B146: 79 | C146: 39.50 | D146: 85.56 | E146: 42.78 | F146: 82.28
A147: 20250804011822 | B147: 78 | C147: 39.00 | D147: QK | F147: 39.00
A148: 20250804011823 | B148: 78 | C148: 39.00 | D148: 81.54 | E148: 40.77 | F148: 79.77
A149: 20250804011717 | B149: 77.5 | C149: 38.75 | D149: 86.89 | E149: 43.45 | F149: 82.20
A150: 20250804011817 | B150: 77.5 | C150: 38.75 | D150: 81.53 | E150: 40.77 | F150: 79.52
A151: 20250804011909 | B151: 77.5 | C151: 38.75 | D151: 81.63 | E151: 40.82 | F151: 79.57
A152: 20250804012212 | B152: 93.5 | C152: 46.75 | D152: 73.05 | E152: 36.53 | F152: 83.28
A153: 20250804012107 | B153: 91 | C153: 45.50 | D153: 85.99 | E153: 43.00 | F153: 88.50
A154: 20250804012024 | B154: 90.5 | C154: 45.25 | D154: 79.57 | E154: 39.79 | F154: 85.04
A155: 20250804012121 | B155: 90.5 | C155: 45.25 | D155: 87.63 | E155: 43.82 | F155: 89.07
A156: 20250804012003 | B156: 89.5 | C156: 44.75 | D156: 85.03 | E156: 42.52 | F156: 87.27
A157: 20250804012104 | B157: 89.5 | C157: 44.75 | D157: 90.74 | E157: 45.37 | F157: 90.12
A158: 20250804012001 | B158: 88 | C158: 44.00 | D158: 89.56 | E158: 44.78 | F158: 88.78
A159: 20250804012002 | B159: 88 | C159: 44.00 | D159: 86.99 | E159: 43.50 | F159: 87.50
A160: 20250804012012 | B160: 87 | C160: 43.50 | D160: 88.10 | E160: 44.05 | F160: 87.55
A161: 20250804012114 | B161: 86.5 | C161: 43.25 | D161: 64.70 | E161: 32.35 | F161: 75.60
A162: 20250804012011 | B162: 85.5 | C162: 42.75 | D162: QK | F162: 42.75
A163: 20250804012016 | B163: 85.5 | C163: 42.75 | D163: 79.21 | E163: 39.61 | F163: 82.36
A164: 20250804012116 | B164: 85.5 | C164: 42.75 | D164: 63.72 | E164: 31.86 | F164: 74.61
A165: 20250804012213 | B165: 85.5 | C165: 42.75 | D165: 85.58 | E165: 42.79 | F165: 85.54
A166: 20250804012220 | B166: 85.5 | C166: 42.75 | D166: 89.35 | E166: =D166/2 -> 44.68 | F166: 87.43
A167: 20250804012108 | B167: 85 | C167: =B167/2 -> 42.50 | D167: 86.16 | E167: 43.08 | F167: =C167+E167 -> 85.58
A168: 20250804012215 | B168: 85 | C168: 42.50 | D168: 92.52 | E168: 46.26 | F168: 88.76
A169: 20250804011928 | B169: 83 | C169: 41.50 | D169: 84.39 | E169: 42.20 | F169: 83.70
A170: 20250804012202 | B170: 83 | C170: 41.50 | D170: 80.62 | E170: 40.31 | F170: 81.81
A171: 20250804012211 | B171: 83 | C171: 41.50 | D171: 82.51 | E171: 41.26 | F171: 82.76
A172: 20250804012222 | B172: 79 | C172: 39.50 | D172: QK | F172: 39.50
A173: 20250804012230 | B173: 76.5 | C173: 38.25 | D173: 89.86 | E173: 44.93 | F173: 83.18
A174: 20250804012229 | B174: 76 | C174: 38.00 | D174: 89.64 | E174: 44.82 | F174: 82.82
A175: 20250804012227 | B175: 71.5 | C175: 35.75 | D175: 92.47 | E175: 46.24 | F175: 81.99
A176: 20250804012306 | B176: 69.5 | C176: 34.75 | D176: 82.65 | E176: 41.33 | F176: 76.08
A177: 20250804012305 | B177: 67 | C177: 33.50 | D177: 86.55 | E177: 43.28 | F177: 76.78
A178: 20250804012307 | B178: 67 | C178: 33.50 | D178: 88.66 | E178: 44.33 | F178: 77.83
A179: 20250804012524 | B179: 82 | C179: 41.00 | D179: 88.83 | E179: 44.42 | F179: 85.42
A180: 20250804012828 | B180: 81.5 | C180: 40.75 | D180: 86.75 | E180: 43.38 | F180: 84.13
A181: 20250804012614 | B181: 80.5 | C181: 40.25 | D181: 92.34 | E181: 46.17 | F181: 86.42
A182: 20250804012810 | B182: 80.5 | C182: 40.25 | D182: 89.57 | E182: 44.79 | F182: 85.04
A183: 20250804012417 | B183: 79.5 | C183: 39.75 | D183: 87.15 | E183: 43.58 | F183: 83.33
A184: 20250804012514 | B184: 79.5 | C184: 39.75 | D184: 89.21 | E184: 44.61 | F184: 84.36
A185: 20250804012515 | B185: 78.5 | C185: 39.25 | D185: 91.07 | E185: 45.54 | F185: 84.79
A186: 20250804012326 | B186: 78 | C186: 39.00 | D186: 83.41 | E186: 41.71 | F186: 80.71
A187: 20250804012512 | B187: 78 | C187: 39.00 | D187: 85.21 | E187: 42.61 | F187: 81.61
A188: 20250804012612 | B188: 77.5 | C188: 38.75 | D188: 88.45 | E188: 44.23 | F188: 82.98
A189: 20250804012628 | B189: 77.5 | C189: 38.75 | D189: 86.74 | E189: 43.37 | F189: 82.12
A190: 20250804012709 | B190: 77.5 | C190: 38.75 | D190: 84.26 | E190: 42.13 | F190: 80.88
A191: 20250804012830 | B191: 77.5 | C191: 38.75 | D191: 91.61 | E191: 45.81 | F191: 84.56
A192: 20250804012428 | B192: 77 | C192: 38.50 | D192: 90.30 | E192: 45.15 | F192: 83.65
A193: 20250804012501 | B193: 76.5 | C193: 38.25 | D193: 80.99 | E193: 40.50 | F193: 78.75
A194: 20250804012812 | B194: 76.5 | C194: 38.25 | D194: 92.26 | E194: 46.13 | F194: 84.38
A195: 20250804012530 | B195: 76 | C195: 38.00 | D195: 90.84 | E195: 45.42 | F195: 83.42
A196: 20250804012609 | B196: 76 | C196: 38.00 | D196: QK | F196: 38.00
A197: 20250804012706 | B197: 76 | C197: 38.00 | D197: 90.26 | E197: 45.13 | F197: 83.13
A198: 20250804012823 | B198: 76 | C198: 38.00 | D198: 80.32 | E198: 40.16 | F198: 78.16
A199: 20250804012903 | B199: 76 | C199: 38.00 | D199: 88.73 | E199: 44.37 | F199: 82.37
